fUSD/lending_fUSD_20260417
["ID","MTS","AMOUNT","RATE_DAILY","PERIOD"]
[420624841,1776360639617,-415.23,0.000103,2]
[420624842,1776360639626,-499.76,0.000103,2]
[420624843,1776360639636,-2147.58,0.000103,2]
[420624844,1776360639645,-2443.37,0.000103,2]
[420624845,1776360639655,-2433.15,0.000103,2]
[420624846,1776360639664,-1310.76,0.000103,2]
[420624847,1776360639673,-1573.08,0.000103,2]
[420624848,1776360639683,-1293.94,0.000103,2]
[420624849,1776360639693,-1812.88,0.000103,2]
[420624850,1776360639703,-151.0,0.000103,2]
[420624851,1776360639713,-167.14013,0.000103,2]
[420624852,1776360639723,-167.14014,0.000103,2]
[420624853,1776360639733,-167.14014,0.000103,2]
[420624854,1776360639742,-167.14013,0.000103,2]
[420624855,1776360639751,-167.14014,0.000103,2]
[420624856,1776360639761,-167.14014,0.000103,2]
[420624857,1776360639772,-500.0,0.000103,2]
[420624858,1776360639781,-156.587,0.000103,2]
[420624859,1776360639792,-181.08010149,0.000103,2]
[420624860,1776360639803,-150.0,0.00010332,2]
[420624861,1776360639813,-250.0,0.00010332,2]
[420624862,1776360639823,-150.051,0.00010332,2]
[420624863,1776360639833,-150.0,0.00010332,2]
[420624864,1776360639843,-150.102,0.00010332,2]
[420624865,1776360639852,-151.163,0.00010332,2]
[420624866,1776360639861,-1264.0,0.00010332,2]
[420624867,1776360639870,-926.0,0.00010332,2]
[420624868,1776360639879,-1218.0,0.00010332,2]
[420624869,1776360639888,-1459.96,0.00010332,2]
[420624870,1776360639897,-2473.0,0.00010332,2]
[420624871,1776360639907,-200.0,0.00010332,2]
[420624872,1776360639916,-183.57157804,0.00010332,2]
[420624873,1776360639925,-1530.0,0.00010332,2]
[420624874,1776360639935,-1530.0,0.00010332,2]
[420624875,1776360639944,-1530.0,0.00010332,2]
[420624876,1776360639953,-1530.0,0.00010332,2]
[420624877,1776360639963,-1530.0,0.00010332,2]
[420624878,1776360639973,-1530.0,0.00010332,2]
[420624879,1776360639981,-923.65793482,0.00010332,2]
[420624880,1776360639990,-151.0,0.00010332,2]
[420624881,1776360640000,-153.35058231,0.00010332,2]
[420624882,1776360640009,-1530.0,0.00010332,2]
[420624883,1776360640019,-160.0,0.00010348,2]
[420624884,1776360640029,-1600.0,0.00010349,2]
[420624885,1776360640039,-168.55,0.00010362,2]
[420624886,1776360640048,-151.0,0.00010397,2]
[420624887,1776360640058,-151.0,0.00010397,2]
[420624888,1776360640067,-250.0,0.00010397,2]
[420624889,1776360640077,-202441.16517188,0.000104,2]
[420624890,1776360640086,-150.0,0.000104,2]
[420624891,1776360640096,-160.0,0.000104,7]
[420624892,1776360640105,-327.72,0.000104,2]
[420624893,1776360640115,-151.0,0.000104,2]
[420624894,1776360640124,-690.43747443,0.000104,2]
[420624895,1776360640133,-5532.0,0.000104,5]
[420624896,1776360640143,-151.0,0.000104,2]
[420624897,1776360640152,-394.01263112,0.000104,2]
[420624898,1776360640162,-151.0,0.000104,2]
[420624899,1776360640171,-151.0,0.000104,2]
[420624900,1776360640180,-151.0,0.000104,2]
[420624901,1776360640189,-151.0,0.000104,2]
[420624902,1776360640198,-151.0,0.000104,2]
[420624903,1776360640207,-200.0,0.00010435,2]
[420624904,1776360640217,-250.0,0.00010436,2]
[420624905,1776360640226,-250.0,0.00010436,2]
[420624906,1776360640235,-193.0,0.00010436,2]
[420624907,1776360640244,-2000.0,0.00010458,2]
[420624908,1776360640255,-9999.99,0.00010475,2]
[420624909,1776360640264,-9075.03408079,0.00010486,2]
[420624910,1776360640273,-151.0,0.00010497,2]
[420624911,1776360640285,-306.0,0.000105,5]
[420624912,1776360640294,-244.0,0.000105,5]
[420624913,1776360640304,-159604.5956209,0.000105,2]
[420624914,1776360640317,-1900.0,0.000105,2]
[420624915,1776360640328,-1137.26399223,0.000105,2]
[420624916,1776360640345,-373.53675253,0.000105,2]
[420624919,1776360640537,-1189.92846213,0.000105,2]
[420624920,1776360640549,-1017.21027625,0.000105,2]
[420624921,1776360640599,-524.00836148,0.000105,2]
[420624922,1776360640928,-165.4089,0.000103,2]
[420624923,1776360640938,-150.0,0.000103,2]
[420624924,1776360640947,-2984.5911,0.000105,2]
[420624925,1776360641093,-685.66380758,0.000105,2]
[420624926,1776360641104,-474.37484254,0.000105,2]
[420624927,1776360641117,-550.51113492,0.000105,2]
[420624935,1776360643712,-685.274,0.00010342,2]
[420624936,1776360643722,-5.98267354,0.000105,2]
[420624938,1776360643748,-516.40575147,0.000105,2]
[420624939,1776360643797,-827.75733248,0.000105,2]
[420624946,1776360646297,-589.51456451,0.00010253,2]
[420624947,1776360646306,-3862.58543536,0.000105,2]
[420624948,1776360646318,-16137.93196658,0.000105,2]
[420624949,1776360646357,-4158.62134997,0.000105,2]
[420624950,1776360646369,-400.88914376,0.000105,2]
[420624951,1776360646523,-7553.33332383,0.000105,2]
[420624952,1776360646535,-1434.61950838,0.000105,2]
[420624953,1776360646634,-1180.95304529,0.000105,2]
[420624956,1776360647823,-1693.226,0.000105,2]
[420624957,1776360647838,-747.52,0.000105,2]
[420624958,1776360647851,-608.21731146,0.000105,2]
[420624959,1776360647863,-345.53625,0.000105,2]
[420624960,1776360647877,-42749.672503,0.000105,2]
[420624975,1776360946725,150.0,0.00011233,120]
[420624976,1776361041028,10000.0,0.000165,120]
[420624977,1776361055992,10000.0,0.000165,30]
[420624978,1776361060729,10000.0,0.000165,30]
[420624979,1776361144623,166.79,9.367e-05,2]
[420624982,1776361304908,932.25,0.000165,120]
[420624984,1776361436352,1600.0,9.321e-05,2]
[420624985,1776361517147,150.0,9.345e-05,2]
[420624986,1776361517269,150.0,9.345e-05,2]
[420624987,1776361521700,150.0,9.345e-05,2]
[420624988,1776361528355,150.0,9.345e-05,2]
[420624989,1776361535511,150.0,9.345e-05,2]
[420624993,1776361600788,3193.35,9.442e-05,2]
[420625018,1776361709452,165.77,9.323e-05,2]
[420625020,1776361773319,220.29,9.306e-05,2]
[420625021,1776361831584,-300.0,9.451e-05,2]
[420625022,1776361831594,-709.784997,9.451e-05,2]
[420625023,1776361831618,-490.215003,9.451e-05,2]
[420625024,1776361831628,-250.0,9.452e-05,2]
[420625025,1776361831638,-500.0,9.452e-05,2]
[420625026,1776361831648,-365.77698005,9.452e-05,2]
[420625027,1776361831672,-134.22301995,9.452e-05,2]
[420625028,1776361831681,-500.0,9.452e-05,2]
[420625029,1776361831691,-500.0,9.452e-05,2]
[420625030,1776361831701,-136.91859181,9.452e-05,2]
[420625031,1776361831713,-363.08140819,9.452e-05,2]
[420625032,1776361831723,-198.64585229,9.452e-05,2]
[420625033,1776361831735,-301.35414771,9.452e-05,2]
[420625034,1776361831745,-500.0,9.452e-05,2]
[420625035,1776361831755,-180.93318901,9.452e-05,2]
[420625036,1776361831768,-319.06681099,9.452e-05,2]
[420625037,1776361831778,-500.0,9.452e-05,2]
[420625038,1776361831788,-500.0,9.452e-05,2]
[420625039,1776361831797,-500.0,9.452e-05,2]
[420625040,1776361831811,-500.0,9.452e-05,2]
[420625041,1776361831821,-500.0,9.452e-05,2]
[420625044,1776361831830,-500.0,9.452e-05,2]
[420625047,1776361831840,-500.0,9.452e-05,2]
[420625049,1776361831850,-500.0,9.452e-05,2]
[420625051,1776361831860,-500.0,9.452e-05,2]
[420625054,1776361831870,-500.0,9.452e-05,2]
[420625055,1776361831880,-500.0,9.452e-05,2]
[420625056,1776361831890,-500.0,9.452e-05,2]
[420625057,1776361831900,-2000.0,9.548e-05,2]
[420625058,1776361831909,-150.0,9.608e-05,2]
[420625059,1776361831919,-74984.4734,9.775e-05,2]
[420625060,1776361831929,-578.20924308,9.797e-05,2]
[420625061,1776361831939,-150.0,9.831e-05,2]
[420625062,1776361831948,-160.0,9.868e-05,2]
[420625063,1776361831958,-151.0,9.869e-05,2]
[420625064,1776361831968,-174.61919141,9.869e-05,2]
[420625065,1776361831978,-300.0,9.874e-05,2]
[420625066,1776361831987,-35041.02,9.875e-05,2]
[420625067,1776361831997,-150.0,9.878e-05,2]
[420625068,1776361832007,-157.63,9.908e-05,2]
[420625069,1776361832017,-293.29,0.0001,2]
[420625070,1776361832030,-300.0,0.0001,2]
[420625071,1776361832039,-175.97,0.0001,2]
[420625072,1776361832049,-162.73,0.0001,2]
[420625073,1776361832059,-160.62,0.0001,2]
[420625074,1776361832069,-164.95,0.00010017,2]
[420625075,1776361832079,-1000.0,0.00010196,2]
[420625076,1776361832089,-150.0,0.000102,2]
[420625077,1776361832098,-87733.4565,0.000102,2]
[420625078,1776361832109,-2980.982,0.00010201,2]
[420625079,1776361832118,-190.436,0.00010201,2]
[420625080,1776361832129,-4152.7093,0.00010284,2]
[420625081,1776361832138,-11356.2649,0.00010284,2]
[420625082,1776361832148,-543.0349095,0.00010294,2]
[420625083,1776361832170,-885.35256167,0.00010294,2]
[420625084,1776361832180,-200.0,0.00010294,2]
[420625085,1776361832190,-721.12765535,0.00010294,2]
[420625086,1776361832200,-624.88609395,0.000103,2]
[420625087,1776361832210,-10000.0,0.000103,2]
[420625088,1776361832221,-262.6750874,0.000103,2]
[420625089,1776361832231,-2303.2473,0.000103,2]
[420625090,1776361832240,-3528.0,0.00010359,2]
[420625091,1776361832250,-1348.0,0.00010359,2]
[420625092,1776361832260,-1047.0,0.00010359,2]
[420625093,1776361832270,-200.0,0.00010359,2]
[420625094,1776361832279,-416.0,0.00010359,2]
[420625095,1776361832289,-203.716,0.00010359,2]
[420625096,1776361832300,-4005.26833738,0.00010359,2]
[420625097,1776361832312,-1933.86916611,0.00010359,2]
[420625098,1776361832323,-87.86249651,0.00010359,2]
[420625099,1776361832334,-500.0,0.00010373,2]
[420625100,1776361832343,-126.67806844,0.00010384,2]
[420625103,1776361838657,-1000.0,0.000103,2]
[420625104,1776361838669,-10979.75265951,0.00010384,2]
[420625105,1776361838708,-4134.16891772,0.00010384,2]
[420625106,1776361838818,-3137.83435291,0.00010384,2]
[420625107,1776361838868,-1313.60996539,0.00010384,2]
[420625108,1776361838880,-7563.98216898,0.00010384,2]
[420625109,1776361838892,-451.15504761,0.00010384,2]
[420625156,1776361839931,-2264.03179334,0.00010384,2]
[420625157,1776361840230,-480.53080747,0.00010384,2]
[420625158,1776361840242,-301.95919253,0.00010384,2]
[420625159,1776361840264,-4368.552554,0.00010384,2]
[420625173,1776361843832,-2473.0,0.00010359,2]
[420625174,1776361843842,-328.1067144,0.00010384,2]
[420625176,1776361846081,-292.8776381,0.00010198,2]
[420625177,1776361846091,-18613.6377577,0.00010384,2]
[420625179,1776361846100,-192.56,0.00010391,2]
[420625180,1776361846110,-420.0,0.00010396,2]
[420625182,1776361846124,-1680.0,0.00010396,2]
[420625183,1776361846135,-250.0,0.00010396,2]
[420625184,1776361846144,-5000.0,0.00010397,2]
[420625185,1776361846153,-155.0,0.00010399,2]
[420625186,1776361846163,-538.35427022,0.00010399,2]
[420625187,1776361846173,-500.0,0.00010399,2]
[420625188,1776361846182,-500.0,0.00010399,2]
[420625189,1776361846192,-224.79796484,0.00010399,2]
[420625190,1776361846201,-460.64405509,0.00010399,2]
[420625191,1776361846211,-259.0,0.000104,5]
[420625192,1776361846220,-250.0,0.000104,2]
[420625193,1776361846231,-33047.9748,0.000104,2]
[420625194,1776361846242,-696.89341,0.000104,2]
[420625195,1776361846252,-156.587,0.00010417,2]
[420625196,1776361846263,-181.08010149,0.00010417,2]
[420625197,1776361846274,-200.0,0.00010438,2]
[420625198,1776361846283,-200.0,0.00010438,2]
[420625199,1776361846293,-175.97,0.00010458,2]
[420625200,1776361846303,-500.0,0.00010473,2]
[420625201,1776361846313,-500.0,0.00010473,2]
[420625202,1776361846323,-500.0,0.00010473,2]
[420625203,1776361846332,-500.0,0.00010473,2]
[420625204,1776361846343,-500.0,0.00010473,2]
[420625205,1776361846353,-1600.0,0.00010486,2]
[420625206,1776361846363,-34585.8522507,0.00010494,2]
[420625207,1776361847100,-3185.2874068,0.00010494,2]
[420625208,1776361847111,-155.1495352,0.00010494,2]
[420625209,1776361847121,-60978.6525923,0.00010494,2]
[420625210,1776361847130,-32288.47276337,0.000105,2]
[420625211,1776361847151,-4813.38169941,0.000105,2]
[420625212,1776361847162,-5508.00000712,0.000105,2]
[420625223,1776362533239,285.7,9.325e-05,2]
[420625224,1776362596626,150.0,9.327e-05,2]
[420625225,1776362666803,150.0,9.325e-05,2]
[420625227,1776362724334,150.0,8.778e-05,2]
[420625228,1776362858557,178.36,9.325e-05,2]
[420625229,1776362861762,699.27,9.209e-05,2]
[420625230,1776362893755,2000.0,9.208e-05,2]
[420625231,1776362921432,287.83,9.325e-05,2]
[420625232,1776362985940,150.0,9.297e-05,2]
[420625238,1776363031874,-300.0,9.476e-05,2]
[420625239,1776363031885,-194.0,9.476e-05,2]
[420625240,1776363031895,-790.18884217,9.476e-05,2]
[420625241,1776363031915,-409.81115783,9.476e-05,2]
[420625242,1776363031924,-103.08969383,9.477e-05,2]
[420625243,1776363031937,-96.91030617,9.477e-05,2]
[420625244,1776363031946,-244.43860783,9.477e-05,2]
[420625245,1776363031958,-255.56139217,9.477e-05,2]
[420625246,1776363031967,-500.0,9.477e-05,2]
[420625247,1776363031976,-500.0,9.477e-05,2]
[420625248,1776363031986,-468.86867358,9.477e-05,2]
[420625249,1776363031996,-157.03,9.517e-05,2]
[420625250,1776363032007,-2384.786,9.579e-05,2]
[420625251,1776363032016,-152.348,9.579e-05,2]
[420625253,1776363032026,-150.0,9.597e-05,2]
[420625254,1776363032035,-283.57,9.625e-05,2]
[420625256,1776363032045,-150.0,9.627e-05,2]
[420625257,1776363032055,-84247.3114,9.673e-05,2]
[420625258,1776363032064,-185958.6288,9.673e-05,2]
[420625259,1776363032074,-10864.0238,9.675e-05,2]
[420625260,1776363032084,-2500.0,9.675e-05,2]
[420625261,1776363032093,-150.0,9.752e-05,2]
[420625262,1776363032103,-500.0,9.753e-05,2]
[420625263,1776363032113,-500.0,9.753e-05,2]
[420625264,1776363032123,-376.84798916,9.774e-05,2]
[420625265,1776363032133,-322.45083856,9.774e-05,2]
[420625266,1776363032143,-9999.99,9.774e-05,2]
[420625267,1776363032153,-45700.42807969,9.774e-05,2]
[420625268,1776363032165,-6516.81192031,9.774e-05,2]
[420625269,1776363032177,-299.99,9.774e-05,2]
[420625270,1776363032187,-3617.90990963,9.785e-05,2]
[420625271,1776363032197,-578.20924308,9.858e-05,2]
[420625272,1776363032206,-200.0,9.858e-05,2]
[420625273,1776363032216,-1952.135499,9.858e-05,2]
[420625274,1776363032227,-1258.84636414,9.858e-05,2]
[420625275,1776363032237,-721.12765535,9.858e-05,2]
[420625276,1776363032248,-1428.38747117,9.858e-05,2]
[420625277,1776363032258,-500.0,9.858e-05,2]
[420625278,1776363032269,-151.0,9.858e-05,2]
[420625279,1776363032279,-500.0,9.858e-05,2]
[420625280,1776363032288,-500.0,9.858e-05,2]
[420625281,1776363032298,-500.0,9.858e-05,2]
[420625282,1776363032307,-500.0,9.858e-05,2]
[420625283,1776363032316,-151.0,9.858e-05,2]
[420625284,1776363032325,-500.0,9.858e-05,2]
[420625285,1776363032335,-500.0,9.858e-05,2]
[420625286,1776363032344,-500.0,9.858e-05,2]
[420625287,1776363032354,-500.0,9.858e-05,2]
[420625288,1776363032363,-500.0,9.858e-05,2]
[420625289,1776363032373,-500.0,9.858e-05,2]
[420625290,1776363032382,-592.50770149,9.858e-05,2]
[420625291,1776363032391,-743.50770149,9.858e-05,2]
[420625292,1776363032400,-174.61919141,9.858e-05,2]
[420625293,1776363032410,-150.0,9.897e-05,2]
[420625294,1776363032419,-586.74719605,9.913e-05,2]
[420625295,1776363032428,-151.0,9.913e-05,2]
[420625296,1776363032437,-150.0,9.927e-05,2]
[420625297,1776363032446,-169.09534764,0.0001,2]
[420625298,1776363032456,-200.18330104,0.0001,2]
[420625299,1776363032465,-206.93569923,0.0001,2]
[420625300,1776363032474,-211.13685014,0.0001,2]
[420625301,1776363032483,-247.61384241,0.0001,2]
[420625302,1776363032493,-404.3755281,0.0001,2]
[420625303,1776363032503,-438.80334069,0.0001,2]
[420625304,1776363032512,-461.88212987,0.0001,2]
[420625305,1776363032521,-153.62606033,0.0001,2]
[420625306,1776363032530,-196.24246337,0.0001,2]
[420625307,1776363032539,-287.50730886,0.0001,2]
[420625308,1776363032547,-271.17015446,0.0001,2]
[420625309,1776363032556,-297.94616423,0.0001,2]
[420625310,1776363032566,-175.11672494,0.0001,2]
[420625311,1776363032575,-151.0,0.0001,2]
[420625312,1776363032583,-151.0,0.0001,2]
[420625313,1776363032593,-151.0,0.0001,2]
[420625314,1776363032602,-151.0,0.0001,2]
[420625315,1776363032611,-200.0,0.0001,2]
[420625316,1776363032620,-151.0,0.0001,2]
[420625317,1776363032629,-151.0,0.0001,2]
[420625318,1776363032639,-237.20960372,0.0001,2]
[420625319,1776363032648,-500.0,0.0001,2]
[420625320,1776363032658,-500.0,0.0001,2]
[420625321,1776363032667,-500.0,0.0001,2]
[420625322,1776363032676,-446.24195719,0.0001,2]
[420625323,1776363032688,-53.75804281,0.0001,2]
[420625324,1776363032700,-500.0,0.0001,2]
[420625325,1776363032711,-500.0,0.0001,2]
[420625326,1776363032720,-500.0,0.0001,2]
[420625327,1776363032729,-500.0,0.0001,2]
[420625328,1776363032739,-500.0,0.0001,2]
[420625329,1776363032748,-500.0,0.0001,2]
[420625330,1776363032757,-500.0,0.0001,2]
[420625331,1776363032766,-160.0,0.00010171,2]
[420625332,1776363032775,-500.0,0.00010173,2]
[420625333,1776363032784,-500.0,0.00010173,2]
[420625334,1776363032793,-11707.80557126,0.0001019,2]
[420625337,1776363037858,-137.92537964,0.0001019,2]
[420625339,1776363037868,-253.79,0.00010197,2]
[420625340,1776363037879,-500.0,0.00010247,2]
[420625341,1776363037889,-328.0,0.00010247,2]
[420625342,1776363037899,-1000.0,0.00010259,2]
[420625343,1776363037909,-3777.0,0.00010262,2]
[420625344,1776363037919,-1472.0,0.00010267,2]
[420625345,1776363037929,-765.0,0.00010267,2]
[420625346,1776363037939,-3757.90300053,0.000103,2]
[420625347,1776363037956,-1057.47540344,0.000103,2]
[420625348,1776363037972,-671.07308538,0.000103,2]
[420625349,1776363038033,-3887.46476502,0.000103,2]
[420625350,1776363038128,-469.10245822,0.000103,2]
[420625353,1776363040528,-19468.68671659,0.000103,2]
[420625354,1776363040545,-1000.18778537,0.000103,2]
[420625355,1776363040560,-865.69,0.000103,2]
[420625356,1776363040590,-781.38889103,0.000103,2]
[420625357,1776363040604,-1401.9124575,0.000103,2]
[420625358,1776363041282,-816.67237252,0.000102,2]
[420625359,1776363041294,-506.45419489,0.000102,2]
[420625360,1776363041333,-3560.24509372,0.000102,2]
[420625361,1776363041345,-2962.73034845,0.000102,2]
[420625362,1776363041359,-2473.0,0.00010262,2]
[420625363,1776363041371,-5641.34295835,0.000103,2]
[420625364,1776363041443,-98857.42592126,0.000103,2]
[420625365,1776363041458,-42540.50800121,0.000103,2]
[420625380,1776363045846,-6781.3842,9.675e-05,2]
[420625381,1776363045858,-3366.46518767,0.000102,2]
[420625382,1776363045868,-5412.21317533,0.000103,2]
[420625383,1776363045880,-426.65218749,0.000103,2]
[420625384,1776363045891,-954.67114887,0.000103,2]
[420625385,1776363045905,-1480.91707797,0.000103,2]
[420625386,1776363045917,-5511.59999466,0.000103,2]
[420625387,1776363046109,-1170.36,0.000103,2]
[420625388,1776363046220,-21486.51005127,0.000103,2]
[420625389,1776363179323,205.38,9.323e-05,2]
[420625390,1776363251849,207.0,9.323e-05,3]
[420625391,1776363361513,200.0,9.407e-05,2]
[420625392,1776363375274,290.53,9.219e-05,2]
[420625393,1776363495248,2000.0,9.349e-05,2]
[420625394,1776363692374,1907.829,9.382e-05,2]
[420625395,1776363692406,152.349,9.382e-05,2]
[420625396,1776363699004,166.79,9.309e-05,2]
[420625397,1776363739832,1500.0,9.318e-05,2]
[420625399,1776363796877,150.0,0.00011233,120]
[420625401,1776364073503,-164.0,0.0001938,120]
[420625402,1776364073534,-1336.0,0.0002,120]
[420625405,1776364232101,-1200.0,9.451e-05,2]
[420625408,1776364232635,-150.0,9.451e-05,2]
[420625409,1776364232660,-300.0,9.451e-05,2]
[420625410,1776364232670,-158.58471458,9.452e-05,2]
[420625411,1776364232680,-483.88198078,9.452e-05,2]
[420625412,1776364232689,-579.80135626,9.452e-05,2]
[420625413,1776364232699,-500.0,9.452e-05,2]
[420625414,1776364232708,-500.0,9.452e-05,2]
[420625415,1776364232718,-500.0,9.452e-05,2]
[420625416,1776364232727,-500.0,9.452e-05,2]
[420625417,1776364232736,-500.0,9.452e-05,2]
[420625418,1776364232746,-500.0,9.452e-05,2]
[420625419,1776364232755,-500.0,9.452e-05,2]
[420625420,1776364232764,-200.0,9.452e-05,2]
[420625421,1776364232774,-500.0,9.452e-05,2]
[420625422,1776364232783,-500.0,9.452e-05,2]
[420625423,1776364232792,-500.0,9.452e-05,2]
[420625424,1776364232802,-500.0,9.452e-05,2]
[420625425,1776364232812,-500.0,9.452e-05,2]
[420625426,1776364232821,-500.0,9.452e-05,2]
[420625427,1776364232831,-500.0,9.452e-05,2]
[420625428,1776364232840,-500.0,9.452e-05,2]
[420625429,1776364232850,-500.0,9.452e-05,2]
[420625430,1776364232860,-500.0,9.452e-05,2]
[420625431,1776364232870,-500.0,9.452e-05,2]
[420625432,1776364232879,-500.0,9.452e-05,2]
[420625433,1776364232888,-500.0,9.452e-05,2]
[420625434,1776364232898,-500.0,9.452e-05,2]
[420625435,1776364232908,-500.0,9.452e-05,2]
[420625436,1776364232918,-500.0,9.452e-05,2]
[420625437,1776364232927,-500.0,9.452e-05,2]
[420625438,1776364232937,-500.0,9.452e-05,2]
[420625439,1776364232947,-500.0,9.452e-05,2]
[420625440,1776364232956,-500.0,9.452e-05,2]
[420625441,1776364232966,-403.66931288,9.452e-05,2]
[420625442,1776364232978,-96.33068712,9.452e-05,2]
[420625443,1776364232988,-500.0,9.452e-05,2]
[420625444,1776364232998,-500.0,9.452e-05,2]
[420625445,1776364233007,-500.0,9.452e-05,2]
[420625446,1776364233016,-500.0,9.452e-05,2]
[420625447,1776364233026,-500.0,9.452e-05,2]
[420625448,1776364233036,-500.0,9.452e-05,2]
[420625449,1776364233045,-500.0,9.452e-05,2]
[420625450,1776364233055,-500.0,9.452e-05,2]
[420625451,1776364233064,-500.0,9.452e-05,2]
[420625452,1776364233073,-500.0,9.452e-05,2]
[420625453,1776364233082,-500.0,9.452e-05,2]
[420625454,1776364233091,-500.0,9.452e-05,2]
[420625455,1776364233100,-500.0,9.452e-05,2]
[420625456,1776364233109,-500.0,9.452e-05,2]
[420625457,1776364233119,-289.54039856,9.452e-05,2]
[420625458,1776364233128,-500.0,9.452e-05,2]
[420625459,1776364233138,-500.0,9.452e-05,2]
[420625460,1776364233147,-500.0,9.452e-05,2]
[420625461,1776364233156,-500.0,9.452e-05,2]
[420625462,1776364233165,-500.0,9.452e-05,2]
[420625463,1776364233175,-500.0,9.452e-05,2]
[420625464,1776364233184,-300.0,9.452e-05,2]
[420625465,1776364233193,-500.0,9.452e-05,2]
[420625466,1776364233202,-500.0,9.452e-05,2]
[420625467,1776364233212,-500.0,9.452e-05,2]
[420625468,1776364233222,-500.0,9.452e-05,2]
[420625469,1776364233231,-500.0,9.452e-05,2]
[420625470,1776364233241,-500.0,9.452e-05,2]
[420625471,1776364233250,-354.39337762,9.452e-05,2]
[420625472,1776364233260,-500.0,9.452e-05,2]
[420625473,1776364233269,-500.0,9.452e-05,2]
[420625474,1776364233278,-500.0,9.452e-05,2]
[420625475,1776364233287,-500.0,9.452e-05,2]
[420625476,1776364233297,-500.0,9.452e-05,2]
[420625477,1776364233307,-500.0,9.452e-05,2]
[420625478,1776364233316,-301.39955166,9.452e-05,2]
[420625479,1776364233325,-285.98407295,9.452e-05,2]
[420625480,1776364233335,-500.0,9.452e-05,2]
[420625481,1776364233344,-500.0,9.452e-05,2]
[420625482,1776364233353,-217.8329367,9.452e-05,2]
[420625483,1776364233362,-37166.0739447,9.453e-05,2]
[420625484,1776364233374,-51740.3807305,9.453e-05,2]
[420625487,1776364238271,-346.73244077,9.452e-05,2]
[420625488,1776364238281,-1876095.4949248,9.453e-05,2]
[420625489,1776364238290,-184.5,9.46e-05,3]
[420625490,1776364238300,-22161.5732,9.473e-05,2]
[420625491,1776364238309,-500.0,9.553e-05,2]
[420625492,1776364238319,-500.0,9.553e-05,2]
[420625493,1776364238328,-13475.31,9.561e-05,2]
[420625494,1776364238337,-14388.51838448,9.563e-05,2]
[420625495,1776364238346,-1053184.98587415,9.573e-05,2]
[420625533,1776364240259,-582.34718739,9.573e-05,2]
[420625534,1776364240271,-659.6567,9.573e-05,2]
[420625535,1776364240283,-354.4929,9.573e-05,2]
[420625608,1776364246448,-2392.81052465,9.573e-05,2]
[420625611,1776364246507,-327.70550658,9.573e-05,2]
[420625628,1776364318169,1600.0,9.438e-05,2]
[420625629,1776364393363,57936.09713692,9.353e-05,2]
[420625634,1776365353037,-150.0,8.408e-05,2]
[420625635,1776365353059,-150.0,8.408e-05,2]
[420625636,1776365353080,-150.0,8.408e-05,2]
[420625637,1776365353102,-150.0,8.408e-05,2]
[420625638,1776365353124,-150.0,8.408e-05,2]
[420625639,1776365353147,-150.0,8.408e-05,2]
[420625640,1776365353170,-150.0,8.408e-05,2]
[420625641,1776365353191,-151.62,8.483e-05,2]
[420625642,1776365353212,-166.22,8.494e-05,2]
[420625643,1776365353235,-150.0,8.642e-05,2]
[420625644,1776365353258,-250.0,8.714e-05,2]
[420625645,1776365353280,-150.0,8.83e-05,2]
[420625646,1776365353301,-150.0,8.875e-05,2]
[420625647,1776365353322,-150.0,8.906e-05,2]
[420625648,1776365353343,-164.06,9.057e-05,2]
[420625649,1776365353364,-150.0,9.1e-05,2]
[420625650,1776365353385,-150.0,9.109e-05,2]
[420625651,1776365353406,-162.14,9.13e-05,2]